[Event "III Menorca Open-A 2024"]
[Site "Ciutadella Menorca"]
[Date "2024.04.03"]
[Round "3.22"]
[White "Cramling Bellon, Anna"]
[Black "Moehn, Hans"]
[Result "0-1"]
[ECO "E71"]
[WhiteElo "2115"]
[BlackElo "2396"]
[Annotator "TA"]
[PlyCount "74"]
[EventDate "2024.04.02"]
[EventType "swiss"]
[EventCountry "ESP"]
[SourceTitle "playchess.com"]
[Source "ChessBase"]
[SourceQuality "1"]
[TimeControl "5400+30"]

{[%evp 11,74,22,51,51,52,50,54,46,90,43,48,53,52,47,54,46,65,36,41,-7,3,3,4,0,3,0,20,13,58,67,69,45,35,1,18,-27,8,13,56,39,22,0,0,0,0,0,0,-50,-55,-65,18,0,22,-64,-50,-96,-85,-566,-528,-5381,-5375,-1526,-1431,-29993,-29994]} 1. d4 {[%emt 0:00:05]} Nf6 {[%emt 0:00:18]} 2. c4 {[%emt 0:00:07]} g6 {[%emt 0:00:13]} 3. Nc3 {[%emt 0:00:06]} Bg7 {[%emt 0:00:13]} 4. e4 {[%emt 0:00:07]} d6 {[%emt 0:00:11]} 5. h3 {[%emt 0:00:12]} O-O {[%emt 0:00:15]} 6. Be3 {[%emt 0:00:33]} Na6 {[%emt 0:01:04]} 7. g4 {[%emt 0:00:28]} c5 {[%emt 0:01:28]} 8. Nge2 {[%emt 0:00:51]} cxd4 {[%emt 0:02:40]} 9. Nxd4 {[%emt 0:00:11] White is slightly better.} b6 {[%emt 0:01:32]} 10. Bg2 {[%emt 0:02:59]} (10. f3 $16) 10... Bb7 {[%emt 0:00:14]} 11. O-O {[%emt 0:02:07][%cal Oe4e5] Threatens to win with e5!} Nc5 {[%emt 0:07:00]} 12. Qc2 {[%emt 0:04:27]} Nfd7 {[%emt 0:02:11]} 13. Rad1 {[%emt 0:09:34]} Rc8 {[%emt 0:00:43]} 14. b3 {[%emt 0:03:28]} a6 {[%emt 0:00:56][%cal Ob6b5]} 15. b4 {[%emt 0:20:29]} (15. Qd2 $14 {is superior.}) 15... Ne6 {[%emt 0:01:07]} 16. Nxe6 {[%emt 0:02:50]} fxe6 {[%emt 0:00:07]} 17. Ne2 {[%emt 0:00:51][%cal Bc3e2,Be2d4,Bd4f3][%mdl 32]} Qe8 {[%emt 0:13:18]} 18. Qb3 {[%emt 0:03:26][%cal Oc4c5]} Rc7 {[%emt 0:03:17]} 19. f4 {[%emt 0:16:31]} Kh8 {[%emt 0:03:04]} 20. Nd4 {[%emt 0:02:33]} Qf7 {[%emt 0:01:36]} 21. Nf3 {[%emt 0:11:30]} (21. c5 bxc5 22. bxc5 (22. Nxe6 $2 c4 $19) 22... Nxc5 $17) 21... Qg8 $1 {[%emt 0:02:48]} 22. Qd3 {[%emt 0:09:22][%cal Oe4e5]} Rfc8 {[%emt 0:05:28]} 23. Rc1 {[%emt 0:01:28][%cal Oe4e5]} b5 {[%emt 0:10:37]} 24. cxb5 {[%emt 0:01:04]} Rc3 {[%emt 0:00:20]} (24... axb5 $5 25. Rxc7 (25. Qxb5 Bxe4 26. Rfe1 Rb8 $11) 25... Rxc7 $14) 25. Qd2 {[%emt 0:01:51] Rxc3 would now be deadly.} axb5 {[%emt 0:00:25]} 26. Nd4 {[%emt 0:01:55]} R3c4 {[%emt 0:05:52]} 27. Nxb5 {[%emt 0:00:06]} Bxe4 {[%emt 0:00:53]} 28. Bxe4 {[%emt 0:01:41]} Rxe4 {[%emt 0:00:07]} 29. Rxc8 {[%emt 0:01:57]} (29. Na7 $1 $11 Ra8 30. b5) 29... Qxc8 $15 {[%emt 0:00:15]} 30. Rc1 {[%emt 0:00:12] Wards off Qc4} Qb8 {[%emt 0:07:16]} ({Better is} 30... Qa6 $1 $15 31. Nd4 Bxd4 32. Bxd4+ Kg8) 31. a4 $11 {[%emt 0:00:27]} Nb6 {[%emt 0:01:39]} 32. Bxb6 {[%emt 0:00:55]} ({Much worse is} 32. a5 Nc4 (32... Nd5 33. Qc2 $16) 33. Qa2 d5 $17 (33... Qxb5 34. a6 $11)) ({White should play} 32. Qd3 $11 Rxb4 33. Nc7) 32... Qxb6+ $15 {[%emt 0:00:04]} 33. Kg2 {[%emt 0:01:29]} (33. Qf2 $15 {might be stronger.} Qd8 (33... Qxf2+ 34. Kxf2 Rxf4+ 35. Kg2 $17) 34. Qd2) 33... h6 $17 {[%emt 0:00:31]} 34. Kh2 $2 {[%emt 0:01:04][%mdl 8192] [#] This move loses the game for White.} (34. Kf3 $17 {is a better chance.} d5 35. Rc5) 34... Rxf4 $3 $19 {[%emt 0:01:07][%mdl 512]} 35. Kg2 {[%emt 0:00:31] Wards off Rf2+} (35. Qxf4 Be5) 35... Qb7+ {[%emt 0:00:50]} 36. Kg1 {[%emt 0:00:16]} Qf3 {[%emt 0:00:36]} 37. Qg2 {[%emt 0:00:44] Wards off Qg3} Qe3+ {[%emt 0:00:07] Weighted Error Value: White=0.68/Black=0.14 (very precise) .  Loses game:     	White=1     	---        Mistake:       	White=5     	Black=1      Inaccurate:     	White=4     	Black=4      OK:         	White=8     	Black=7      Best:        	White=2     	Black=1      Strong:       	---       	Black=1      Brilliant:      	---       	Black=1} 0-1

[Event "III Menorca Open-A 2024"]
[Site "Ciutadella Menorca"]
[Date "2024.04.03"]
[Round "3.23"]
[White "Prado, Alexandra"]
[Black "Bradbury, Neil H"]
[Result "1/2-1/2"]
[ECO "B12"]
[WhiteElo "1877"]
[BlackElo "2197"]
[Annotator "RC"]
[PlyCount "70"]
[EventDate "2024.04.02"]
[EventType "swiss"]
[EventCountry "ESP"]
[SourceTitle "playchess.com"]
[Source "ChessBase"]
[SourceQuality "1"]
[TimeControl "5400+30"]

1. e4 {[%emt 0:00:04]} c6 {[%emt 0:01:25]} 2. d4 {[%emt 0:00:41]} d5 {[%emt 0:00:05]} 3. e5 {[%emt 0:01:31]} Bf5 {[%emt 0:01:43]} 4. Nf3 {[%emt 0:01:25]} e6 {[%emt 0:01:02]} 5. Be2 {[%emt 0:01:34]} a6 {[%emt 0:02:18]} 6. a4 {[%emt 0:06:12]} c5 {[%emt 0:00:32]} 7. Be3 {[%emt 0:21:42]} Nd7 {[%emt 0:04:18]} 8. O-O {[%emt 0:01:45]} Ne7 {[%emt 0:00:04]} 9. dxc5 {[%emt 0:09:51]} Nc6 {[%emt 0:00:27]} 10. Nbd2 {[%emt 0:09:39]} Bxc5 {[%emt 0:03:35]} 11. Bxc5 {[%emt 0:07:08]} Nxc5 {[%emt 0:01:01]} 12. c4 {[%emt 0:00:43]} d4 {[%emt 0:15:29]} 13. Nb3 {[%emt 0:01:15]} Nxb3 {[%emt 0:06:45]} 14. Qxb3 {[%emt 0:00:08]} Qe7 {[%emt 0:00:06]} 15. Rfd1 {[%emt 0:04:43]} Rd8 {[%emt 0:00:17]} 16. Rd2 {[%emt 0:02:07]} O-O {[%emt 0:06:33]} 17. Rad1 {[%emt 0:01:29]} Bg4 {[%emt 0:10:13]} 18. h3 {[%emt 0:06:15]} Bxf3 {[%emt 0:02:32]} 19. Bxf3 {[%emt 0:00:08]} Nxe5 {[%emt 0:05:46]} 20. Rxd4 {[%emt 0:00:19]} Rxd4 {[%emt 0:02:13]} 21. Rxd4 {[%emt 0:00:06]} Qc5 {[%emt 0:00:15]} 22. Qc3 {[%emt 0:09:57]} Nxf3+ {[%emt 0:08:48]} 23. gxf3 {[%emt 0:00:06]} a5 {[%emt 0:01:35]} 24. Qd2 {[%emt 0:02:31]} g6 {[%emt 0:03:38]} 25. b3 {[%emt 0:01:50]} b6 {[%emt 0:03:42]} 26. Rd7 {[%emt 0:04:18]} Rc8 {[%emt 0:09:07]} 27. Kg2 {[%emt 0:00:33]} Re8 {[%emt 0:04:39]} 28. Qf4 {[%emt 0:02:14]} Qf5 {[%emt 0:01:10]} 29. Qe3 {[%emt 0:00:42]} e5 {[%emt 0:01:23]} 30. Rd5 {[%emt 0:01:04]} Re6 {[%emt 0:00:32]} 31. Rd8+ {[%emt 0:01:49]} Kg7 {[%emt 0:00:07]} 32. Rd5 {[%emt 0:00:16]} h5 {[%emt 0:01:56]} 33. h4 {[%emt 0:01:38]} Qf6 {[%emt 0:01:06]} 34. Kg3 {[%emt 0:00:14]} Qf5 {[%emt 0:00:17]} 35. Kg2 {[%emt 0:00:19]} Qf6 {[%emt 0:00:40]} 1/2-1/2

[Event "III Menorca Open-A 2024"]
[Site "Ciutadella Menorca"]
[Date "2024.04.03"]
[Round "3.24"]
[White "Saine, Zachary"]
[Black "Van Foreest, Machteld"]
[Result "0-1"]
[ECO "C10"]
[WhiteElo "2010"]
[BlackElo "2332"]
[Annotator "RC"]
[PlyCount "88"]
[EventDate "2024.04.02"]
[EventType "swiss"]
[EventCountry "ESP"]
[SourceTitle "playchess.com"]
[Source "ChessBase"]
[SourceQuality "1"]
[TimeControl "5400+30"]

1. e4 {[%emt 0:00:02]} e6 {[%emt 0:02:57]} 2. d4 {[%emt 0:00:07]} d5 {[%emt 0:00:13]} 3. Nc3 {[%emt 0:00:07]} dxe4 {[%emt 0:01:00]} 4. Nxe4 {[%emt 0:00:07]} Nd7 {[%emt 0:00:36]} 5. Nf3 {[%emt 0:00:39]} Ngf6 {[%emt 0:02:27]} 6. Nxf6+ {[%emt 0:00:56]} Nxf6 {[%emt 0:00:05]} 7. Bd3 {[%emt 0:00:39]} Be7 {[%emt 0:01:51]} 8. O-O {[%emt 0:04:13]} O-O {[%emt 0:03:00]} 9. Bg5 {[%emt 0:01:48]} Qd6 {[%emt 0:18:49]} 10. Re1 {[%emt 0:06:00]} Rd8 {[%emt 0:02:23]} 11. Ne5 {[%emt 0:05:57]} h6 {[%emt 0:27:12]} 12. Bxf6 {[%emt 0:15:22]} Bxf6 {[%emt 0:03:32]} 13. Qh5 {[%emt 0:00:28]} Bxe5 {[%emt 0:00:48]} 14. dxe5 {[%emt 0:00:18]} Qb4 {[%emt 0:01:12]} 15. Re4 {[%emt 0:13:58]} Qxb2 {[%emt 0:00:54]} 16. Rae1 {[%emt 0:00:16]} Bd7 {[%emt 0:03:54]} 17. Rf4 {[%emt 0:14:50]} Be8 {[%emt 0:00:37]} 18. Qg4 {[%emt 0:16:58]} Rd5 {[%emt 0:03:40]} 19. Rfe4 {[%emt 0:09:04]} Rad8 {[%emt 0:01:41]} 20. h3 {[%emt 0:00:48]} Bb5 {[%emt 0:01:27]} 21. Bxb5 {[%emt 0:05:08]} Rxb5 {[%emt 0:00:02]} 22. Qh4 {[%emt 0:00:54]} Rbd5 {[%emt 0:00:41]} 23. Kh2 {[%emt 0:00:43]} Rd4 {[%emt 0:03:23]} 24. R1e3 {[%emt 0:00:16]} R8d5 {[%emt 0:04:13]} 25. Rxd4 {[%emt 0:01:27]} Qxd4 {[%emt 0:00:27]} 26. Re4 {[%emt 0:01:15]} Qd2 {[%emt 0:03:43]} 27. c4 {[%emt 0:00:10]} Rd7 {[%emt 0:00:29]} 28. Rg4 {[%emt 0:00:11]} g6 {[%emt 0:05:02]} 29. Qf6 {[%emt 0:00:14]} Qc2 {[%emt 0:01:02]} 30. Rf4 {[%emt 0:01:09]} c5 {[%emt 0:03:30]} 31. h4 {[%emt 0:00:40]} Qe2 {[%emt 0:00:27]} 32. g4 {[%emt 0:00:47]} Kh7 {[%emt 0:00:10]} 33. Kg2 {[%emt 0:00:43]} Qxa2 {[%emt 0:00:40]} 34. h5 {[%emt 0:00:36]} g5 {[%emt 0:00:20]} 35. Re4 {[%emt 0:00:04]} Qb3 {[%emt 0:00:22]} 36. f3 {[%emt 0:00:46]} a5 {[%emt 0:00:30]} 37. Kg3 {[%emt 0:00:37]} a4 {[%emt 0:00:06]} 38. Kh3 {[%emt 0:00:30]} a3 {[%emt 0:00:04]} 39. Re2 {[%emt 0:00:04]} Qd3 {[%emt 0:00:03]} 40. Rf2 {[%emt 0:00:16]} Qc3 {[%emt 0:01:41]} 41. Kg2 {[%emt 0:00:09]} Qxc4 {[%emt 0:00:43]} 42. f4 {[%emt 0:00:06]} a2 {[%emt 0:00:15]} 43. fxg5 {[%emt 0:00:24]} Qxg4+ {[%emt 0:00:04]} 44. Kh2 {[%emt 0:00:07]} Qxh5+ {[%emt 0:00:02]} 0-1

[Event "III Menorca Open-A 2024"]
[Site "Ciutadella Menorca"]
[Date "2024.04.04"]
[Round "4.1"]
[White "Iermito, Sebastian"]
[Black "Alekseenko, Kirill"]
[Result "1/2-1/2"]
[ECO "A07"]
[WhiteElo "2511"]
[BlackElo "2650"]
[Annotator "TA"]
[PlyCount "114"]
[EventDate "2024.04.02"]
[EventType "swiss"]
[EventCountry "ESP"]
[SourceTitle "playchess.com"]
[Source "ChessBase"]
[SourceQuality "1"]
[TimeControl "5400+30"]

{[%evp 9,114,16,32,34,32,38,19,10,15,8,6,10,9,12,10,0,0,0,0,0,0,0,0,-10,-16,-22,0,0,0,0,7,3,24,21,17,0,0,-1,0,-14,-12,-29,-32,-33,-32,-33,-11,-18,0,0,0,-7,0,0,0,0,0,-12,-21,-35,-6,-8,-9,-17,0,-17,-23,-17,0,0,0,0,0,-5,-4,-9,-6,93,-3,0,0,0,-11,-242,-214,-287,-324,-392,-387,-530,-527,-600,0,0,0,0,0,0,0,0,0,0,0,0,0,0,0]} 1. Nf3 {[%emt 0:00:03]} d5 {[%emt 0:02:24]} 2. g3 {[%emt 0:00:06]} b6 {[%emt 0:00:45]} 3. c4 {[%emt 0:00:15]} dxc4 {[%emt 0:00:43]} 4. Na3 {[%emt 0:00:10]} Bb7 {[%emt 0:01:16]} 5. Nxc4 {[%emt 0:00:18]} Nd7 {[%emt 0:04:26]} 6. Bg2 {[%emt 0:00:27]} e6 {[%emt 0:00:22]} 7. O-O {[%emt 0:00:44]} Be7 {[%emt 0:01:49]} 8. d4 {[%emt 0:01:18]} Ngf6 {[%emt 0:02:35]} 9. Nce5 {[%emt 0:00:54]} Nxe5 {[%emt 0:05:45]} 10. Nxe5 {[%emt 0:00:09]} Bxg2 {[%emt 0:00:37]} 11. Kxg2 {[%emt 0:02:29]} O-O {[%emt 0:00:09]} 12. Qa4 {[%emt 0:27:08]} c5 {[%emt 0:07:52]} 13. Nc6 {[%emt 0:01:23]} Qd7 {[%emt 0:00:56] ...Kh8 would now be deadly.} 14. Nxe7+ {[%emt 0:02:34]} Qxe7 {[%emt 0:00:50]} 15. dxc5 {[%emt 0:23:07]} Qxc5 {[%emt 0:01:29]} 16. Qb3 {[%emt 0:04:11]} Rac8 {[%emt 0:04:01]} 17. Rd1 {[%emt 0:06:18]} Ng4 {[%emt 0:14:23]} 18. Qf3 {[%emt 0:05:47]} Ne5 {[%emt 0:00:36]} 19. Qe4 {[%emt 0:01:33]} f5 {[%emt 0:02:40]} 20. Qe3 {[%emt 0:03:42]} Qc6+ {[%emt 0:09:28]} 21. f3 {[%emt 0:00:07]} Nc4 {[%emt 0:00:04]} 22. Qb3 {[%emt 0:06:36]} e5 {[%emt 0:09:38]} 23. Be3 {[%emt 0:02:53]} f4 {[%emt 0:00:05]} 24. gxf4 {[%emt 0:02:02]} exf4 {[%emt 0:00:44]} 25. Bd4 {[%emt 0:00:10]} Rfe8 {[%emt 0:01:36]} 26. Re1 {[%emt 0:01:31]} Rcd8 {[%emt 0:08:55]} 27. Rad1 {[%emt 0:00:20]} Qe6 {[%emt 0:01:06]} 28. Kh1 {[%emt 0:01:04]} Rd7 {[%emt 0:05:21]} 29. Bc3 {[%emt 0:01:18] Hoping for Rxd7.} Red8 {[%emt 0:05:02]} 30. Rc1 {[%emt 0:01:22][%cal Oc3g7]} Rc8 {[%emt 0:00:12][%cal Bd8c8,Bc8c7,Bc7d7][%mdl 32]} 31. Rcd1 {[%emt 0:01:24]} Rcc7 {[%emt 0:01:56]} 32. Rxd7 {[%emt 0:03:10]} Rxd7 {[%emt 0:00:04]} 33. Qb5 {[%emt 0:00:24]} h6 {[%emt 0:02:16]} 34. Rg1 {[%emt 0:01:20]} Kh7 {[%emt 0:00:41][%cal Og7g5]} 35. Qa4 {[%emt 0:00:33]} a6 {[%emt 0:03:14]} 36. Qc2+ {[%emt 0:00:25]} Kg8 {[%emt 0:00:49]} 37. b3 {[%emt 0:00:44]} Ne3 {[%emt 0:00:15]} 38. Qc1 {[%emt 0:00:55]} Nd5 {[%emt 0:01:45][%cal Od7c7]} 39. Ba1 {[%emt 0:00:11] Black must now prevent Qc8+.} g5 {[%emt 0:02:34][%cal Od5e3]} 40. Qb2 {[%emt 0:00:45]} Kh7 {[%emt 0:00:03]} 41. Qb1+ {[%emt 0:00:26]} Qg6 {[%emt 0:00:34]} 42. Qb2 {[%emt 0:00:03][%csl Ga1][%cal Rb2h8] Repels Qxb1} (42. Qxg6+ {simplifies} Kxg6 43. Rd1 b5 44. Kg1) 42... Qf5 {[%emt 0:00:39]} 43. Qh8+ {[%emt 0:00:47]} Kg6 {[%emt 0:00:03]} 44. Qe8+ {[%emt 0:00:18]} Qf7 {[%emt 0:00:10]} 45. Qe4+ {[%emt 0:00:07]} Kh5 {[%emt 0:00:44]} 46. Qb1 $2 {[%emt 0:01:11] [#]} (46. Rd1 $1 $11 {and White is okay.}) 46... Qe6 $1 $19 {[%emt 0:00:35]} 47. Qd3 {[%emt 0:00:45]} Ne3 {[%emt 0:00:41]} 48. Qc3 {[%emt 0:00:31]} Nf5 {[%emt 0:00:12]} 49. Re1 {[%emt 0:00:29]} Re7 {[%emt 0:01:20] And now ...Nh4 would win.} 50. Qc2 {[%emt 0:00:31] [#]} Ng3+ $2 {[%emt 0:00:25]} 51. hxg3 $11 {[%emt 0:00:28] Intending g4+ and mate. The position is equal.} Qh3+ {[%emt 0:00:13]} 52. Kg1 {[%emt 0:00:00][%cal Oc2f5]} Qxg3+ {[%emt 0:00:53]} 53. Kf1 {[%emt 0:00:01] Qf5 is the strong threat.} Qh3+ {[%emt 0:00:31]} 54. Kf2 {[%emt 0:00:19]} Qh2+ {[%emt 0:00:06]} 55. Kf1 {[%emt 0:00:01]} Qh1+ {[%emt 0:00:52]} 56. Kf2 {[%emt 0:00:01][%cal Re1h1]} Qh2+ {[%emt 0:00:27]} 57. Kf1 {[%emt 0:00:00]} Qh1+ {[%emt 0:00:24] White happily takes the draw.   Weighted Error Value: White=0.17 (very precise) /Black=0.12 (very precise) .  Loses game:     	White=1     	---        Missed win:     	---       	Black=1      Inaccurate:     	White=2     	Black=1      OK:         	White=23    	Black=29     Best:        	White=1     	Black=1} 1/2-1/2

[Event "III Menorca Open-A 2024"]
[Site "Ciutadella Menorca"]
[Date "2024.04.04"]
[Round "4.2"]
[White "Krzyzanowski, Marcin"]
[Black "Dardha, Daniel"]
[Result "1/2-1/2"]
[ECO "B30"]
[WhiteElo "2510"]
[BlackElo "2628"]
[Annotator "TA"]
[PlyCount "62"]
[EventDate "2024.04.02"]
[EventType "swiss"]
[EventCountry "ESP"]
[SourceTitle "playchess.com"]
[Source "ChessBase"]
[SourceQuality "1"]
[TimeControl "5400+30"]

{[%evp 9,62,0,1,0,1,-13,-14,-26,-11,-14,-14,-49,-52,-47,-47,-56,-45,-50,-31,-31,-38,-26,-31,-7,0,-14,-11,-19,0,0,0,0,0,0,-5,-20,-15,-13,-16,-16,-20,-39,-3,-4,-6,-9,0,0,-2,-2,-7,-6,0,0,0]} 1. e4 {[%emt 0:00:03]} c5 {[%emt 0:03:45]} 2. Nf3 {[%emt 0:00:06]} Nc6 {[%emt 0:00:16]} 3. Bb5 {[%emt 0:00:06]} e6 {[%emt 0:00:49]} 4. Bxc6 {[%emt 0:00:05]} bxc6 {[%emt 0:00:04]} 5. d3 {[%emt 0:00:05]} Ne7 {[%emt 0:00:43][%cal Bg8e7,Be7g6,Bg6f4][%mdl 32]} 6. Nbd2 {[%emt 0:00:05][%cal Bb1d2,Bd2c4,Bc4e3,Be3d5][%mdl 32]} Qc7 {[%emt 0:02:53]} 7. Qe2 {[%emt 0:03:00]} e5 {[%emt 0:12:19]} 8. Nc4 {[%emt 0:05:45]} Ng6 {[%emt 0:02:44]} 9. h4 {[%emt 0:00:36] [#] And now h5 would win.} h5 {[%emt 0:10:12]} 10. Bd2 {[%emt 0:06:53]} f6 {[%emt 0:03:27]} 11. Ne3 {[%emt 0:10:24]} Nf4 {[%emt 0:04:35]} 12. Qd1 {[%emt 0:05:07]} d5 {[%emt 0:01:03][%cal Oc5c4]} 13. g3 {[%emt 0:03:38]} Ne6 {[%emt 0:03:41][%cal Oc5c4]} 14. exd5 {[%emt 0:05:22]} cxd5 {[%emt 0:00:06]} 15. Nxd5 {[%emt 0:00:05]} Qc6 {[%emt 0:09:23]} 16. c4 {[%emt 0:02:25]} Bb7 {[%emt 0:00:35]} 17. Ba5 {[%emt 0:07:38]} Qd7 {[%emt 0:06:13]} 18. Qe2 {[%emt 0:06:04]} Bxd5 {[%emt 0:01:48]} 19. cxd5 {[%emt 0:00:03]} Qxd5 {[%emt 0:00:10]} 20. Qe4 {[%emt 0:02:17] Repels Nd4} Qxe4+ {[%emt 0:00:07]} 21. dxe4 {[%emt 0:00:02]} Rb8 {[%emt 0:01:02]} 22. b3 {[%emt 0:01:13] [#]} c4 $1 {[%emt 0:04:54]} 23. bxc4 {[%emt 0:04:09]} Bb4+ {[%emt 0:07:41]} 24. Bxb4 {[%emt 0:00:04]} Rxb4 {[%emt 0:00:12]} 25. O-O {[%emt 0:11:37]} Rxc4 {[%emt 0:00:16]} 26. Rfc1 {[%emt 0:00:32] The position is equal.} Rxc1+ {[%emt 0:00:37]} 27. Rxc1 {[%emt 0:00:01]} Kd7 {[%emt 0:00:27] Prevents Rc8} 28. Rc3 {[%emt 0:02:08]} Rc8 {[%emt 0:01:39]} 29. Ra3 {[%emt 0:01:33]} Rc7 {[%emt 0:00:45]} 30. Nd2 {[%emt 0:01:09]} Nc5 {[%emt 0:01:03]} 31. f4 {[%emt 0:02:07]} exf4 {[%emt 0:06:11] Weighted Error Value: White=0.05 (flawless) /Black=0.05 (flawless) .  Inaccurate:     	White=1     	Black=1      OK:         	White=11    	Black=11     Best:        	White=1     	---} 1/2-1/2

[Event "III Menorca Open-A 2024"]
[Site "Ciutadella Menorca"]
[Date "2024.04.04"]
[Round "4.3"]
[White "Mamedov, Edgar"]
[Black "Gorshtein, Ido"]
[Result "1/2-1/2"]
[ECO "D32"]
[WhiteElo "2317"]
[BlackElo "2540"]
[Annotator "TA"]
[PlyCount "38"]
[EventDate "2024.04.02"]
[EventType "swiss"]
[EventCountry "ESP"]
[SourceTitle "playchess.com"]
[Source "ChessBase"]
[SourceQuality "1"]
[TimeControl "5400+30"]

{[%evp 21,38,37,33,0,0,0,-7,0,0,0,0,0,17,0,10,0,7,-18,0]} 1. Nf3 {[%emt 0:00:30]} c5 {[%emt 0:00:13]} 2. c4 {[%emt 0:00:48]} Nc6 {[%emt 0:00:16]} 3. Nc3 {[%emt 0:00:51]} Nf6 {[%emt 0:00:45]} 4. e3 {[%emt 0:00:22]} a6 {[%emt 0:00:10]} 5. b3 {[%emt 0:03:48]} e6 {[%emt 0:01:35]} 6. Bb2 {[%emt 0:00:33]} d5 {[%emt 0:00:20]} 7. cxd5 {[%emt 0:01:08]} exd5 {[%emt 0:00:09]} 8. d4 {[%emt 0:00:39]} cxd4 {[%emt 0:02:51]} 9. Nxd4 {[%emt 0:00:11]} Bd6 {[%emt 0:00:08]} 10. Be2 {[%emt 0:02:10]} O-O {[%emt 0:00:16]} 11. O-O {[%emt 0:01:16]} Re8 {[%emt 0:00:08]} 12. Nf3 {[%emt 0:01:44]} Bc7 {[%emt 0:01:02] The position is equal.} 13. Re1 {[%emt 0:22:29]} Qd6 {[%emt 0:02:31][%cal Od5d4] White should prevent ...d4!} 14. g3 {[%emt 0:01:45]} h5 {[%emt 0:06:44]} 15. Rc1 {[%emt 0:06:09]} Bd7 {[%emt 0:06:00]} 16. Na4 {[%emt 0:04:16]} Ne4 {[%emt 0:08:08] Prevents Nc5} 17. Nc3 {[%emt 0:00:46]} Nf6 {[%emt 0:03:15]} 18. Na4 {[%emt 0:00:16]} Ne4 {[%emt 0:10:36] Repels Nc5} 19. Nc3 {[%emt 0:00:10]} Nf6 {[%emt 0:04:24] Not much happened in this game.   Weighted Error Value: White=0.12 (very precise) /Black=0.02 (flawless) .  OK:         	White=2     	Black=4} (19... Rad8 $5) 1/2-1/2

[Event "III Menorca Open-A 2024"]
[Site "Ciutadella Menorca"]
[Date "2024.04.04"]
[Round "4.4"]
[White "Lubbe, Nikolas"]
[Black "Klimkowski, Jan"]
[Result "0-1"]
[ECO "E14"]
[WhiteElo "2518"]
[BlackElo "2505"]
[Annotator "TA"]
[PlyCount "102"]
[EventDate "2024.04.02"]
[EventType "swiss"]
[EventCountry "ESP"]
[SourceTitle "playchess.com"]
[Source "ChessBase"]
[SourceQuality "1"]
[TimeControl "5400+30"]

{[%evp 28,102,0,-8,-1,-6,12,0,0,0,0,0,0,0,0,0,0,0,16,12,18,14,110,25,31,0,27,27,37,24,26,22,29,16,16,16,27,19,35,23,31,31,69,45,83,66,88,47,47,65,87,49,53,33,150,155,186,135,133,126,148,-909,-813,-897,-813,-29994,-29995,-29995,-29996,-29996,-29988,-29990,-29991,-29993,-29994,-29994,-533]} 1. d4 {[%emt 0:00:03]} Nf6 {[%emt 0:00:05]} 2. Nf3 {[%emt 0:00:07]} d5 {[%emt 0:00:10]} 3. c4 {[%emt 0:00:13]} e6 {[%emt 0:00:04]} 4. e3 {[%emt 0:00:06]} Be7 {[%emt 0:00:07]} 5. b3 {[%emt 0:00:09]} O-O {[%emt 0:00:19]} 6. Bd3 {[%emt 0:00:15]} b6 {[%emt 0:00:47]} 7. Nbd2 {[%emt 0:01:22]} Bb7 {[%emt 0:01:38]} 8. O-O {[%emt 0:00:46]} c5 {[%emt 0:01:35]} 9. Bb2 {[%emt 0:00:15]} cxd4 {[%emt 0:01:38]} 10. exd4 {[%emt 0:00:08]} Nc6 {[%emt 0:00:22]} 11. Rc1 {[%emt 0:00:18]} Rc8 {[%emt 0:05:36]} 12. Qe2 {[%emt 0:00:22]} Re8 {[%emt 0:02:21]} 13. Rfd1 {[%emt 0:00:20]} Bf8 {[%emt 0:01:49]} 14. Nf1 {[%emt 0:00:23]} g6 {[%emt 0:03:41]} 15. Ne3 {[%emt 0:00:30]} Bg7 {[%emt 0:02:39]} 16. c5 {[%emt 0:00:16]} Nd7 {[%emt 0:11:18]} 17. Bb5 {[%emt 0:00:27]} a6 {[%emt 0:01:22] The position is equal.} 18. Bxc6 {[%emt 0:00:10]} Bxc6 {[%emt 0:02:41]} 19. cxb6 {[%emt 0:00:10]} Qxb6 {[%emt 0:01:16]} 20. Ng4 {[%emt 0:00:09]} f6 {[%emt 0:06:35]} 21. Qd2 {[%emt 0:00:38]} g5 {[%emt 0:03:48]} 22. Ne3 {[%emt 0:01:30]} Bb7 {[%emt 0:04:30]} 23. h4 {[%emt 0:07:05]} h6 {[%emt 0:02:06]} 24. Ba3 {[%emt 0:02:49]} Qb5 {[%emt 0:05:47]} (24... Nf8 $11 {remains equal.}) 25. Rc2 {[%emt 0:09:37]} (25. hxg5 $16 {Hoping for g6.} hxg5 26. Ng4) 25... Nf8 {[%emt 0:03:21]} 26. Rdc1 {[%emt 0:07:37]} Qd7 {[%emt 0:02:28]} 27. hxg5 {[%emt 0:11:03]} hxg5 {[%emt 0:01:18]} 28. Ne1 {[%emt 0:00:45]} Rxc2 {[%emt 0:02:30]} 29. Rxc2 {[%emt 0:00:54]} e5 {[%emt 0:10:11]} 30. Nd3 {[%emt 0:02:27] [#] Nc5 is the strong threat.} exd4 {[%emt 0:01:21]} 31. Nf1 {[%emt 0:00:07] Excellent horsemanship.} Ne6 {[%emt 0:03:02]} 32. Nc5 {[%emt 0:00:28]} Nxc5 {[%emt 0:01:16]} 33. Bxc5 {[%emt 0:00:04]} d3 {[%emt 0:06:29]} 34. Qxd3 {[%emt 0:00:17]} d4 {[%emt 0:05:09]} 35. Qxd4 {[%emt 0:01:39]} Qe6 {[%emt 0:00:01]} 36. Qb4 {[%emt 0:04:39]} Bc6 {[%emt 0:02:04]} 37. Be3 {[%emt 0:05:50]} Bb5 {[%emt 0:01:43]} 38. a4 {[%emt 0:07:06]} Bd3 {[%emt 0:01:00]} 39. Rc7 {[%emt 0:01:38] Black must now prevent Qd4.} Bf8 {[%emt 0:00:03]} 40. Qc3 {[%emt 0:01:11]} Be4 {[%emt 0:01:25]} (40... Bd6 $14) 41. Ng3 $16 {[%emt 0:04:06]} Rd8 {[%emt 0:01:48] [#] Strongly threatening ...Rd1+.} 42. Nxe4 {[%emt 0:05:25]} (42. Bc5 $18) 42... Qxe4 {[%emt 0:04:07]} 43. Qc1 {[%emt 0:06:40] Against Rd1+} (43. Qxf6 $2 {leads to mate.} Rd1+ 44. Kh2 Qh4#) 43... Qd3 {[%emt 0:00:30] ...Qd1+ would now be deadly.} 44. Rc3 $2 {[%emt 0:00:39][%mdl 8192] Now White is beyond hope.} (44. g3 $16) 44... Qe2 $19 {[%emt 0:00:00]} 45. Kh2 {[%emt 0:04:37]} Rd1 {[%emt 0:00:00]} 46. Qc2 {[%emt 0:00:18]} Bd6+ {[%emt 0:00:00] Black mates.} 47. f4 {[%emt 0:00:07]} Qh5+ {[%emt 0:00:00]} 48. Kg3 {[%emt 0:00:01]} gxf4+ {[%emt 0:00:00]} 49. Bxf4 {[%emt 0:02:53]} Qg5+ {[%emt 0:00:00]} 50. Kf3 {[%emt 0:00:04]} Qxf4+ {[%emt 0:00:00]} 51. Ke2 {[%emt 0:00:00]} Qf1+ {[%emt 0:00:00] Weighted Error Value: White=0.44/Black=0.19 (very precise) .  Loses game:     	White=1     	---        Mistake:       	White=2     	Black=2      Inaccurate:     	White=3     	Black=3      OK:         	White=10    	Black=6      Best:        	White=1     	Black=2} 0-1